bitfinex-derivatives/quotes_SOLF0:USTF0_20251211
["timestamp","ask_amount","ask_price","bid_price","bid_amount"]
[1765487358021,110.6513,137.38,137.36,9.623e-05]
[1765487358319,2.2,137.37,137.36,9.623e-05]
[1765487358509,2.2,137.37,137.28,61.8]
[1765487358510,101.9296,137.34,137.28,61.8]
[1765487358718,104.1471,137.32,137.28,61.8]
[1765487358918,101.9602,137.3,137.23,3.16]
[1765487359114,104.1693,137.29,137.25,1.70095699]
[1765487359421,101.9533,137.31,137.24,1.70095699]
[1765487359619,101.9242,137.35,137.26,3.20960308]
[1765487359819,2.2,137.36,137.29,1.70095699]
[1765487360021,407.5211,137.41,137.29,1.70095699]
[1765487360022,2.25,137.4,137.32,3.16]
[1765487360219,2.25,137.38,137.34,1.70095699]
[1765487360422,104.1519,137.38,137.32,3.16]
[1765487360621,101.9325,137.34,137.26,3.16]
[1765487360828,0.04937187,137.31,137.29,1.74918737]
[1765487361220,0.04937187,137.31,137.3,4.85648181]
[1765487361416,2.25,137.38,137.3,3.16]
[1765487361619,2.25,137.38,137.34,1.69397229]
[1765487361818,108.4372,137.4,137.34,1.69397229]
[1765487362219,110.7372,137.4,137.35,1.69397229]
[1765487362433,110.7372,137.4,137.34,0.04946301]
[1765487362727,110.7372,137.4,137.26,101.9827]
[1765487362728,0.04901876,137.36,137.26,3.16]
[1765487362936,101.9443,137.32,137.26,3.16]
[1765487363126,6.5537,137.32,137.26,3.16]
[1765487363519,101.9584,137.3,137.21,3.16]
[1765487363719,0.05517643,137.27,137.25,1.6946805]
[1765487363933,0.05517643,137.27,137.26,1.44752892]
[1765487364441,0.05517643,137.27,137.24,0.04744751]
[1765487364941,102.65017643,137.27,137.24,0.04744751]
[1765487365344,0.05517643,137.27,137.24,0.04744751]
[1765487367045,0.05517643,137.27,137.26,3.16]
[1765487367234,0.05517643,137.27,137.24,0.04744751]
[1765487367235,0.05517643,137.27,137.24,3.20744751]
[1765487367430,0.05517643,137.27,137.25,1.69481725]
[1765487368039,101.9906,137.26,137.24,0.04744751]
[1765487368332,101.9883,137.26,137.24,0.04744751]
[1765487368532,109.155,137.26,137.24,0.04744751]
[1765487369147,102.0274,137.21,137.13,3.16]
[1765487369438,102.0274,137.21,137.19,1.69932682]
[1765487370142,108.63520897,137.21,137.19,1.74948627]
[1765487370338,102.0482,137.18,137.14,3.16]
[1765487370539,102.5965,137.2,137.14,3.16]
[1765487370839,102.6005,137.19,137.13,61.86]
[1765487371235,102.6005,137.19,137.15,1.70033203]
[1765487371443,0.05083227,137.17,137.15,4.914084]
[1765487371749,102.10693227,137.17,137.15,0.05375197]
[1765487371946,6.61183227,137.17,137.15,0.05375197]
[1765487373045,0.05083227,137.17,137.16,1.70009982]
[1765487373239,0.05083227,137.17,137.16,4.86009982]
[1765487373544,0.05083227,137.17,137.16,3.16]
[1765487373747,0.56,137.16,137.15,0.05375197]
[1765487374051,102.0775,137.14,137.07,65.04]
[1765487374346,0.56,137.12,137.11,7.752e-05]
[1765487374547,0.56,137.12,137.03,3.16]
[1765487374548,102.1003,137.11,137.03,3.16]
[1765487374941,0.05257512,137.08,137.03,3.16]
[1765487375144,102.0722,137.15,137.07,3.16]
[1765487375350,102.0722,137.15,137.11,1.70514994]
[1765487375548,102.6822,137.15,137.11,1.70514994]
[1765487375744,102.0587,137.17,137.11,4.86514994]
[1765487375945,102.0289,137.21,137.15,1.70514994]
[1765487376150,0.05508554,137.19,137.17,0.05192878]
[1765487376657,101.9839,137.27,137.19,3.16]
[1765487376852,102.0036,137.24,137.2,1.70266867]
[1765487377047,6.5592,137.21,137.15,3.16]
[1765487377355,102.0337,137.2,137.16,1.70211688]
[1765487377654,6.5605,137.18,137.16,1.70211688]
[1765487377854,6.5605,137.18,137.17,0.04630274]
[1765487378544,6.5621,137.14,137.11,65.06]
[1765487378750,0.67,137.18,137.13,4.86258183]
[1765487379055,0.67,137.18,137.14,1.70258183]
[1765487379555,0.04724435,137.17,137.15,0.05199179]
[1765487379758,102.1127,137.1,137.0,3.16]
[1765487379957,0.67,137.11,137.07,1.7035563]
[1765487380255,0.67,137.11,137.08,1.7035563]
[1765487380759,0.72198326,137.11,137.09,1.70149842]
[1765487381059,0.72198326,137.11,137.08,0.05583367]
[1765487381251,7.28568326,137.11,137.08,0.05583367]
[1765487381647,0.67,137.16,137.08,3.21583367]
[1765487381950,102.0706,137.15,137.11,1.69996741]
[1765487382259,102.0706,137.15,137.02,102.1635]
[1765487382260,7.2328,137.13,137.12,6.741e-05]
[1765487382556,102.7612,137.13,137.05,3.16]
[1765487382756,0.05033382,137.1,137.08,3.21129095]
[1765487383051,0.05033382,137.1,137.08,0.05129095]
[1765487383249,0.05033382,137.1,137.09,1.69841929]
[1765487384455,0.05033382,137.1,137.08,0.05129095]
[1765487384660,6.61473382,137.1,137.08,0.05129095]
[1765487385654,6.61473382,137.1,137.09,1.69752203]
[1765487385855,102.1296,137.07,137.0,3.16]
[1765487386056,102.1255,137.08,137.0,3.16]
[1765487386452,6.5662,137.06,137.0,3.16]
[1765487386959,0.04926594,137.04,137.02,3.2136409]
[1765487387159,0.04926594,137.04,137.02,0.0536409]
[1765487387359,0.04926594,137.04,137.03,1.69683785]
[1765487389561,6.61636594,137.04,137.03,1.69606823]
[1765487390059,6.5681,137.02,136.99,3.52015491]
[1765487390267,102.8421,137.03,136.99,3.52015491]
[1765487390561,6.5676,137.03,136.99,3.52015491]
[1765487390964,6.5676,137.03,136.99,6.65015491]
[1765487391156,6.5676,137.03,137.01,1.69594055]
[1765487391357,0.04926594,137.04,137.01,1.69594055]
[1765487391654,0.04926594,137.04,137.03,1.69594055]
[1765487391854,0.04926594,137.04,137.02,3.13]
[1765487392065,0.04926594,137.04,137.03,1.6948679]
[1765487392263,0.04926594,137.04,137.03,6.79e-05]
[1765487392463,102.88606594,137.04,137.0,0.04929852]
[1765487392961,6.568,137.02,137.0,0.04929852]
[1765487393269,0.68,137.01,136.99,2.93e-05]
[1765487393463,7.2483,137.01,136.99,2.93e-05]
[1765487394266,7.2483,137.01,136.99,0.05562315]
[1765487394957,6.5683,137.01,136.99,0.05562315]
[1765487397462,0.68,137.0,136.91,3.13]
[1765487397659,102.8661,137.0,136.91,3.13]
[1765487397864,102.1717,137.02,136.91,3.13]
[1765487398072,6.5686,137.01,136.93,3.13]
[1765487398267,115.20372968,137.04,136.93,3.13]
[1765487398268,0.68,137.04,136.93,3.13]
[1765487398567,0.68,137.04,137.0,1.70557199]
[1765487398765,0.73045749,137.03,137.01,0.05435747]
[1765487399665,6.61805749,137.03,137.01,0.05435747]
[1765487399973,0.05045749,137.03,137.01,0.05435747]
[1765487400167,0.05045749,137.03,137.02,1.70670172]
[1765487400561,0.68,137.11,137.03,3.13]
[1765487400765,102.089,137.13,136.99,21.86]
[1765487400766,102.089,137.13,137.06,4.83709261]
[1765487400964,102.769,137.13,137.09,1.70709261]
[1765487401167,0.68,137.11,137.02,3.13]
[1765487401463,102.0935,137.12,137.07,1.70951228]
[1765487401776,102.0935,137.12,137.02,3.13]
[1765487401777,6.5641,137.1,137.08,1.75787766]
[1765487401979,6.5641,137.1,137.08,0.04836538]
[1765487403076,0.05568748,137.11,137.08,0.04836538]
[1765487403274,0.05568748,137.11,137.09,1.71219499]
[1765487403574,102.15628748,137.11,137.08,0.04836538]
[1765487403772,102.1171,137.09,137.02,61.98]
[1765487404377,102.1225,137.08,137.02,61.98]
[1765487404676,102.1225,137.08,137.04,1.71389043]
[1765487404874,6.566,137.06,137.05,0.0470098]
[1765487405666,0.0519724,137.07,137.05,3.1770098]
[1765487405874,114.44702968,137.14,137.05,3.1770098]
[1765487406075,114.44702968,137.14,137.09,1.71347945]
[1765487406474,102.0626,137.16,137.09,4.84347945]
[1765487406675,102.0475,137.18,137.11,1.71347945]
[1765487406873,0.05337967,137.16,137.13,0.05520618]
[1765487407370,102.1026,137.11,137.06,3.13]
[1765487407577,102.1085,137.1,137.02,3.13]
[1765487407871,6.5651,137.08,137.06,1.71910719]
[1765487408073,12.36702968,137.12,137.06,4.84910719]
[1765487408272,0.04927578,137.1,137.08,0.05274821]
[1765487408478,0.05458205,137.1,137.08,3.17995206]
[1765487408874,12.36702968,137.18,137.08,3.17995206]
[1765487409078,6.5613,137.16,137.13,1.71825299]
[1765487409280,102.0405,137.19,137.14,1.71825299]
[1765487409673,6.5613,137.16,137.14,1.71825299]
[1765487409873,6.60781054,137.16,137.14,0.05090849]
[1765487410073,6.60781054,137.16,137.14,0.0508555]
[1765487415679,0.04651054,137.16,137.15,1.72641936]
[1765487415881,0.04651054,137.16,137.14,0.0508555]
[1765487416486,6.5616,137.15,137.14,0.0508555]
[1765487416676,0.04651054,137.16,137.14,0.0508555]
[1765487417385,0.04651054,137.16,137.15,1.72663307]
[1765487417780,0.04651054,137.16,137.15,4.85663307]
[1765487417979,0.04651054,137.16,137.15,3.13]
[1765487418179,0.04651054,137.16,137.14,0.0508555]
[1765487419182,6.60771054,137.16,137.14,0.0508555]
[1765487419392,0.04651054,137.16,137.15,4.95318306]
[1765487419581,114.37112968,137.24,137.15,3.23]
[1765487419776,102.0341,137.2,137.17,9.348e-05]
[1765487419984,102.0511,137.18,137.11,3.23]
[1765487420285,102.0632,137.16,137.08,9.58288241]
[1765487420592,0.04696068,137.13,137.11,0.04977908]
[1765487420776,0.04696068,137.13,137.11,3.27977908]
[1765487420979,12.36702968,137.21,137.13,3.23]
[1765487421176,102.014,137.23,137.15,4.95261208]
[1765487421384,6.5594,137.2,137.17,1.72261208]
[1765487421575,6.5594,137.2,137.15,3.23]
[1765487421892,0.05341214,137.19,137.17,1.72192793]
[1765487422087,6.61321214,137.19,137.17,1.72192793]
[1765487422288,0.05341214,137.19,137.18,4.95192793]
[1765487422587,6.5581,137.23,137.18,3.23]
[1765487422784,6.5581,137.23,137.19,1.72101669]
[1765487422979,6.5581,137.23,137.2,4.95101669]
[1765487423197,74.30702968,137.27,137.21,1.72101669]
[1765487423496,101.9765,137.28,137.22,4.95101669]
[1765487423693,0.05301618,137.26,137.24,0.04883888]
[1765487424187,0.05301618,137.26,137.25,1.7176609]
[1765487424589,0.05301618,137.26,137.24,3.27883888]
[1765487424786,6.60961618,137.26,137.25,6.435e-05]
[1765487424990,6.60961618,137.26,137.24,0.04883888]
[1765487425687,6.5587,137.21,137.17,3.23]
[1765487426197,101.9918,137.26,137.17,3.23]
[1765487426393,102.0041,137.24,137.2,1.71472994]
[1765487426694,0.05565696,137.23,137.21,0.05423864]
[1765487427087,6.5582,137.22,137.21,0.05423864]
[1765487430386,0.05565696,137.23,137.21,0.05423864]
[1765487430387,0.05565696,137.23,137.21,3.28423864]
[1765487430693,102.063,137.16,137.13,3.23]
[1765487430893,102.0367,137.2,137.09,3.23]
[1765487431195,102.0497,137.18,137.09,3.23]
[1765487431384,102.0452,137.19,137.09,3.23]
[1765487431584,102.0452,137.19,137.15,4.94400738]
[1765487431796,0.05086181,137.18,137.15,3.23]
[1765487431995,6.561,137.17,137.15,3.23]
[1765487432201,0.05086181,137.18,137.15,3.23]
[1765487432602,6.61106181,137.18,137.15,3.23]
[1765487433088,6.61106181,137.18,137.13,3.28061529]
[1765487433293,102.1325,137.07,137.0,3.23]
[1765487433493,102.1554,137.04,137.0,3.23]
[1765487434103,6.5676,137.03,137.0,3.23]
[1765487434295,6.6203663,137.03,137.01,1.72066806]
[1765487434899,6.5681,137.02,137.0,0.04706935]
[1765487435093,0.0527663,137.03,137.0,0.04706935]
[1765487435902,6.6204663,137.03,137.0,0.04706935]
[1765487436101,0.0527663,137.03,137.0,0.04706935]
[1765487436306,114.48582968,137.09,137.02,3.23]
[1765487436599,6.5655,137.07,137.04,1.719963]
[1765487436802,102.1306,137.07,136.98,3.23]
[1765487437104,6.5662,137.06,137.03,1.71918915]
[1765487437490,6.61585573,137.06,137.03,1.77368605]
[1765487437690,108.7112,137.05,137.03,0.0544969]
[1765487438291,102.1575,137.04,136.94,3.23]
[1765487438500,102.1575,137.04,136.99,1.72027565]
[1765487438690,6.5668,137.05,136.99,4.95027565]
[1765487438891,102.1161,137.09,137.02,1.72027565]
[1765487439096,102.1161,137.09,137.04,1.72027565]
[1765487439297,102.1161,137.09,137.0,3.23]
[1765487439493,0.05268417,137.06,137.04,1.71894449]
[1765487440298,0.05268417,137.06,137.03,0.05286315]
[1765487441192,102.1443,137.05,136.97,3.23]
[1765487441394,102.1517,137.04,137.0,1.7208421]
[1765487441706,102.1613,137.03,136.99,1.7208421]
[1765487442198,114.54162968,137.01,137.0,0.04660031]
[1765487442499,114.54162968,137.01,136.99,0.05549779]
[1765487442702,102.1971,136.98,136.91,3.23]
[1765487442895,12.36702968,136.97,136.96,0.04960392]
[1765487443204,0.05199537,136.96,136.95,0.04974651]
[1765487443803,0.05199537,136.96,136.9,61.96]
[1765487443804,102.2267,136.94,136.9,61.96]
[1765487444110,0.05199537,136.96,136.91,1.72329218]
[1765487444303,6.62279537,136.96,136.91,1.72329218]
[1765487444606,6.62279537,136.96,136.91,4.95329218]
[1765487444800,6.62279537,136.96,136.92,0.0470935]
[1765487445399,6.62279537,136.96,136.92,3.2770935]
[1765487445400,0.05199537,136.96,136.92,3.2770935]
[1765487445602,0.05199537,136.96,136.94,3.23]
[1765487445903,0.05199537,136.96,136.95,1.71929854]
[1765487446105,0.05199537,136.96,136.95,3.23]
[1765487446504,114.52912968,137.03,136.95,3.23]
[1765487446701,6.5685,137.01,136.96,1.71656366]
[1765487446900,102.1741,137.01,136.97,1.71656366]
[1765487447101,114.53512968,137.02,136.95,3.23]
[1765487447300,114.53512968,137.02,136.97,1.71646419]
[1765487447505,0.04702889,137.01,136.98,0.04984192]
[1765487448006,6.569,137.0,136.98,0.04984192]
[1765487448609,0.04702889,137.01,136.98,0.04984192]
[1765487449302,12.41405857,137.01,136.87,3.06]
[1765487449509,12.36702968,136.97,136.92,4.77566697]
[1765487449707,12.36702968,136.97,136.93,1.71566697]
[1765487450114,102.1898,136.99,136.93,4.77566697]
[1765487450302,12.36702968,137.0,136.95,0.04682615]
[1765487450499,0.04829246,136.97,136.95,3.10682615]
[1765487450696,0.04829246,136.97,136.96,4.77440888]
[1765487450903,0.04829246,136.97,136.95,0.04682615]
[1765487452405,0.04829246,136.97,136.95,3.10682615]
[1765487452612,0.04829246,136.97,136.96,1.71289567]
[1765487454709,0.04829246,136.97,136.95,3.10682615]
[1765487456617,0.04829246,136.97,136.96,1.71073]
[1765487457212,0.04829246,136.97,136.96,4.77073]
[1765487457410,0.04829246,136.97,136.96,3.06]
[1765487459308,0.04829246,136.97,136.95,0.04682615]
[1765487460119,0.04829246,136.97,136.96,3.06]
[1765487462316,0.04829246,136.97,136.95,0.04682615]
[1765487462515,0.04829246,136.97,136.95,3.10682615]
[1765487462720,0.04829246,136.97,136.96,1.70966075]
[1765487463112,0.04829246,136.97,136.96,4.76966075]
[1765487463313,0.04829246,136.97,136.96,3.06]
[1765487464515,6.61859246,136.97,136.95,0.04682615]
[1765487465116,0.04829246,136.97,136.95,3.10682615]
[1765487465919,0.04829246,136.97,136.96,4.77004293]
[1765487466226,0.04829246,136.97,136.96,3.06]
[1765487466620,13.67502335,137.02,136.96,3.06]
[1765487466923,7.10682335,137.02,136.97,1.70994731]
[1765487467113,6.5693,136.99,136.97,1.70994731]
[1765487467316,102.1816,137.0,136.96,1.70994731]
[1765487467517,102.2145,136.96,136.9,3.06]
[1765487467723,109.32132335,136.96,136.9,3.06]
[1765487468221,6.5732,136.91,136.88,3.06]
[1765487468626,6.62009568,136.91,136.89,4.77531939]
[1765487468926,0.04689568,136.91,136.9,1.71531939]
[1765487469110,0.04689568,136.91,136.89,3.06]
[1765487469317,6.62009568,136.91,136.88,0.04768098]
[1765487469521,6.62009568,136.91,136.89,1.71712181]
[1765487470521,62.0,136.9,136.75,11.6959199]
[1765487470722,62.0,136.9,136.77,3.06]
[1765487470723,7.10682335,136.8,136.77,3.06]
[1765487470923,7.10682335,136.81,136.69,102.4129]
[1765487471119,102.3068,136.84,136.77,1.72433107]
[1765487471120,13.68342335,136.84,136.77,1.72433107]
[1765487471322,109.36642335,136.9,136.71,6.5824]
[1765487471323,109.38552335,136.87,136.78,1.72433107]
[1765487471619,109.38552335,136.87,136.73,164.3968]
[1765487471620,0.05565826,136.84,136.81,1.77995802]
[1765487471819,102.2521,136.91,136.81,1.77995802]
[1765487471820,109.35892335,136.91,136.81,0.05212914]
[1765487472024,102.2282,136.94,136.86,1.72124721]
[1765487472223,102.2282,136.94,136.87,1.72124721]
[1765487472424,6.5728,136.92,136.88,1.72124721]
[1765487472820,6.5728,136.92,136.89,0.05205445]
[1765487472821,0.05108622,136.91,136.89,0.05205445]
[1765487473027,0.05108622,136.91,136.9,3.06]
[1765487473225,0.05108622,136.91,136.9,4.78124721]
[1765487473426,0.05108622,136.91,136.9,3.06]
[1765487473623,6.5718,136.94,136.9,3.06]
[1765487473821,6.5718,136.94,136.91,4.78300533]
[1765487474023,6.5709,136.96,136.93,3.06]
[1765487474419,6.5709,136.96,136.94,1.724724]
[1765487474616,6.5709,136.96,136.94,1.7783305]
[1765487474822,0.04964921,136.96,136.95,5.074724]
[1765487475130,109.27602335,137.02,136.95,3.35]
[1765487475333,6.569,137.0,136.96,5.07383928]
[1765487475627,6.569,137.0,136.96,3.35]
[1765487476227,0.04757769,136.99,136.97,5.1355481]
[1765487476420,0.04757769,136.99,136.98,5.07933039]
[1765487476630,0.04757769,136.99,136.98,3.35]
[1765487476926,108.7215,137.04,136.98,3.35]
[1765487477128,108.7215,137.04,136.99,5.07852873]
[1765487477328,108.7215,137.04,136.99,3.35]
[1765487477831,0.05245354,137.03,137.0,3.40226524]
[1765487479624,0.05245354,137.03,137.02,3.04]
[1765487479826,109.21682335,137.1,137.02,3.04]
[1765487480026,109.21682335,137.1,137.03,63.77176106]
[1765487480330,108.6794,137.09,137.03,62.04]
[1765487481033,0.05123237,137.07,137.05,0.04676082]
[1765487481230,0.05123237,137.07,137.05,3.08676082]
[1765487481724,6.5632,137.12,137.06,4.77047841]
[1765487481926,6.5632,137.12,137.07,4.77047841]
[1765487482127,115.74212335,137.15,137.08,4.77047841]
[1765487482328,115.74212335,137.15,137.09,1.73047841]
[1765487482530,115.74212335,137.15,137.08,3.04]
[1765487482733,0.04785779,137.13,137.1,0.04676896]
[1765487482918,0.04785779,137.13,137.1,3.08676896]
[1765487483127,0.04785779,137.13,137.1,65.10676896]
[1765487483324,0.04785779,137.13,137.12,3.04]
[1765487484831,102.0364,137.2,137.12,3.04]
[1765487484832,7.10682335,137.21,137.13,3.04]
[1765487485136,7.10682335,137.21,137.16,4.76182628]
[1765487485339,7.10682335,137.21,137.16,3.04]
[1765487485535,102.0145,137.23,137.17,1.7189579]
[1765487485830,0.04793369,137.21,137.19,0.05378077]
[1765487486033,0.04793369,137.21,137.19,3.09378077]
[1765487486235,0.04793369,137.21,137.2,4.75775135]
[1765487486540,0.04793369,137.21,137.2,3.04]
[1765487486924,6.5559,137.27,137.2,3.04]
[1765487487122,7.10682335,137.28,137.22,1.71353568]
[1765487487340,109.08022335,137.28,137.23,1.71353568]
[1765487487536,101.9893,137.26,137.2,3.04]
[1765487487726,102.0039,137.24,137.22,1.70880309]
[1765487488038,102.0187,137.22,137.17,3.04]
[1765487488240,0.05339494,137.21,137.17,3.04]
[1765487488428,0.05339494,137.21,137.18,3.0934601]
[1765487488830,0.05339494,137.21,137.2,4.74812125]
[1765487489036,0.05339494,137.21,137.2,3.04]
[1765487489525,108.5319,137.28,137.2,3.04]
[1765487489726,7.10682335,137.29,137.22,3.04]
[1765487489938,7.10682335,137.29,137.24,4.74582894]
[1765487490134,7.10682335,137.29,137.24,3.04]
[1765487490441,6.5552,137.29,137.25,1.70036398]
[1765487490740,0.05091256,137.28,137.26,0.04773055]
[1765487492141,101.9172,137.36,137.27,4.73698852]
[1765487492344,203.7916,137.39,137.25,61.96]
[1765487492345,7.10682335,137.37,137.31,1.69698852]
[1765487492539,7.10682335,137.37,137.28,3.04]
[1765487492741,7.10682335,137.37,137.31,1.69206979]
[1765487492932,6.5511,137.37,137.31,1.69206979]
[1765487493138,6.5511,137.37,137.33,3.08917254]
[1765487493139,0.05092655,137.35,137.33,3.08917254]
[1765487493441,0.05092655,137.35,137.34,4.7275099]
[1765487493642,7.10682335,137.4,137.34,3.04]
[1765487493840,6.5493,137.41,137.35,1.68703717]
[1765487494038,101.8733,137.42,137.35,1.68703717]
[1765487494039,101.8703,137.42,137.35,1.68703717]
[1765487494339,101.8841,137.4,137.36,1.68703717]
[1765487494544,101.8841,137.4,137.34,64.98]
[1765487494743,0.05054766,137.38,137.36,0.05149556]
[1765487496338,0.05054766,137.38,137.36,3.09149556]
[1765487496942,0.05054766,137.38,137.36,0.05149556]
[1765487499435,0.05054766,137.38,137.37,4.76103815]
[1765487499637,13.65432335,137.45,137.38,3.09]
[1765487499941,108.97672335,137.42,137.34,3.09]
[1765487500141,7.10682335,137.39,137.35,1.67086276]
[1765487500642,101.94804365,137.38,137.36,0.04675043]
[1765487500943,7.10682335,137.36,137.3,3.09]
[1765487501146,7.10682335,137.36,137.31,4.76176605]
[1765487501441,7.10682335,137.36,137.31,3.09]
[1765487501442,13.65862335,137.36,137.31,3.09]
[1765487501643,101.9286,137.34,137.27,64.99]
[1765487501843,102.00202236,137.32,137.29,0.05456692]
[1765487502143,7.10682335,137.3,137.23,3.09]
[1765487502346,7.10682335,137.3,137.25,1.67250413]
[1765487502742,13.66172335,137.3,137.25,1.67250413]
[1765487502941,109.06822335,137.3,137.24,1.67250413]
[1765487503136,0.05131406,137.28,137.26,0.04918885]
[1765487503635,6.60691406,137.28,137.26,0.04918885]
[1765487503845,0.05131406,137.28,137.26,0.04918885]
[1765487504446,0.05131406,137.28,137.26,3.13918885]
[1765487505046,0.05131406,137.28,137.27,4.76205823]
[1765487505350,0.05131406,137.28,137.26,0.04918885]
[1765487507353,7.10682335,137.27,137.2,3.09]
[1765487507546,7.10682335,137.27,137.22,1.67412853]
[1765487508450,0.04870677,137.26,137.23,0.05395366]
[1765487509147,6.60520677,137.26,137.23,0.05395366]
[1765487509354,0.04870677,137.26,137.23,3.13395366]
[1765487509750,0.04870677,137.26,137.23,0.05395366]
[1765487510959,6.60520677,137.26,137.23,0.05395366]
[1765487511158,6.60520677,137.26,137.24,1.67527825]
[1765487511159,0.04870677,137.26,137.24,1.67527825]
[1765487511457,0.04870677,137.26,137.25,4.75527825]
[1765487511652,0.04870677,137.26,137.25,3.08]
[1765487512856,0.04870677,137.26,137.23,3.13395366]
[1765487513556,7.10682335,137.32,137.24,4.75748004]
[1765487513759,7.10682335,137.32,137.26,1.67748004]
[1765487514060,7.10682335,137.32,137.24,3.08]
[1765487514061,6.5546,137.3,137.24,3.08]
[1765487514360,7.10682335,137.33,137.26,1.67688241]
[1765487514561,0.05346644,137.31,137.28,0.05349358]
[1765487515858,6.60756644,137.31,137.28,0.05349358]
[1765487516257,0.05346644,137.31,137.28,0.05349358]
[1765487516456,6.5547,137.3,137.28,0.05349358]
[1765487517161,6.5559,137.27,137.22,3.08]
[1765487517466,6.5559,137.27,137.24,1.68627823]
[1765487517661,6.5552,137.29,137.25,3.08]
[1765487518263,0.05550898,137.28,137.26,0.05241257]
[1765487518558,0.05550898,137.28,137.26,0.04810576]
[1765487520360,6.61100898,137.28,137.26,0.04810576]
[1765487520556,0.05550898,137.28,137.26,3.12810576]
[1765487520761,0.05550898,137.28,137.27,1.69590694]
[1765487521157,0.05550898,137.28,137.27,4.77590694]
[1765487521460,0.05550898,137.28,137.27,3.08]
[1765487522160,12.31678476,137.36,137.27,3.08]
[1765487522470,114.23338476,137.36,137.29,1.70014907]
[1765487522766,12.31678476,137.36,137.29,1.70014907]
[1765487523167,0.0501711,137.34,137.31,0.05306934]
[1765487523469,0.0501711,137.34,137.33,3.08]
[1765487523765,12.31678476,137.41,137.33,3.08]
[1765487523961,101.8853,137.4,137.3,71.5341]
[1765487524160,101.8853,137.4,137.32,1.70288926]
[1765487524365,114.19708476,137.41,137.33,1.70288926]
[1765487524571,6.55,137.4,137.34,1.70288926]
[1765487524863,0.05421069,137.38,137.36,0.05455857]
[1765487525263,0.05421069,137.38,137.36,3.13455857]
[1765487525462,0.05421069,137.38,137.36,0.05455857]
[1765487525674,0.05421069,137.38,137.36,3.13455857]
[1765487525873,0.05421069,137.38,137.36,0.05455857]
[1765487526072,101.9072,137.37,137.3,64.98]
[1765487526267,101.9247,137.35,137.3,61.9]
[1765487526458,114.25348476,137.33,137.26,3.08]
[1765487526863,6.5537,137.32,137.27,1.71377334]
[1765487527057,0.05568395,137.31,137.28,0.05390869]
[1765487527364,0.05568395,137.31,137.28,3.13390869]
[1765487527565,0.05568395,137.31,137.29,1.71460697]
[1765487527765,6.60978395,137.31,137.28,0.05390869]
[1765487529171,0.05568395,137.31,137.28,3.13390869]
[1765487530070,12.37246871,137.31,137.28,0.05390869]
[1765487530265,6.5548,137.3,137.28,0.05390869]
[1765487530464,0.05568395,137.31,137.28,0.05390869]
[1765487530865,0.05568395,137.31,137.28,3.13390869]
[1765487531064,0.05568395,137.31,137.28,0.05390869]
[1765487532064,0.05568395,137.31,137.28,3.13390869]
[1765487532673,0.05568395,137.31,137.29,4.79853036]
[1765487532866,0.05568395,137.31,137.28,0.05390869]
[1765487533069,0.05568395,137.31,137.28,3.13390869]
[1765487534771,0.05568395,137.31,137.29,5.04042709]
[1765487534972,0.05568395,137.31,137.29,3.32]
[1765487535172,0.05568395,137.31,137.3,3.32]
[1765487536976,0.05568395,137.31,137.28,0.05390869]
[1765487536977,0.05568395,137.31,137.29,3.32]
[1765487538173,101.8933,137.39,137.29,3.32]
[1765487538378,103.11483655,137.45,137.35,3.32]
[1765487538573,115.43162131,137.45,137.37,1.71765818]
[1765487538776,115.43162131,137.45,137.38,5.03765818]
[1765487538777,101.848,137.45,137.38,5.03765818]
[1765487538971,101.833,137.47,137.39,3.24]
[1765487538972,6.5485,137.43,137.39,3.24]
[1765487539175,114.14978476,137.47,137.39,3.24]
[1765487539176,0.04892058,137.42,137.39,3.24]
[1765487539368,101.8265,137.48,137.41,3.24]
[1765487539572,6.5469,137.46,137.41,3.24]
[1765487540269,12.31678476,137.42,137.34,9.5609496]
[1765487540468,12.31678476,137.42,137.37,1.71750235]
[1765487540681,0.05064472,137.39,137.37,5.01007955]
[1765487540869,0.05064472,137.39,137.38,3.24]
[1765487541065,0.05064472,137.39,137.37,0.0525772]
[1765487541267,6.5524,137.35,137.3,9.5609496]
[1765487541472,101.906,137.38,137.32,1.71815461]
[1765487541670,12.31678476,137.39,137.33,3.24]
[1765487541880,101.8581,137.44,137.35,4.95815461]
[1765487541881,12.31678476,137.41,137.35,4.95815461]